Workbook

Sheet Data
A1: Blood Glucose Control Chart | N1: =TODAY() -> 2014-01-28 | Y1: Health Tracker Version 5b (2014-02-01)
O3: Notes:
A4: Report for: | B4: JohnW | O4: This data table and contents can be easily modified to suit. The number of samples per day can also be reduced. If Sampe 2 and 3 are removed, then change the macros for Mean and Standard Deviation. Take Sample1 before breakfast (ie. overnight fasting). Enter month Start Date in cell B8. Vary the tolerance levels (UCL and LCL) by changing the desired Control Limit value at B10. (1s - 100%, 2s - 200%, 3s - 300%). (Suggestion - Change initial values in columns D, N, O, P and U to averages from previous month)
A5: Start date: | B5: 2014-02-01
A6: End date: | B6: =B44 -> 2014-03-03
A8: Blood Glucose Unit: | B8: mg/dL
A9: Control Limits: | B9: 1
A10: Desired Weight: | B10: 80
B12: Sample Date | D12: Blood Glucose Level | G12: Mean (Daily Average) | H12: Sample Mean (Average of All Sample1) | I12: Sample Mean (Average of All Means) | J12: Standard Deviation (since day 1) | K12: Standard Deviation (for month) | L12: Lower Control Limit | M12: Upper Control Limit | N12: Blood Pressure | U12: Other Health Factors
B13: Date | C13: Time | D13: Sample 1 (Morning) | E13: Sample 2 | F13: Sample 3 | N13: Systolic | O13: Diastolic | P13: Pulse | Q13: (UCL Syst) | R13: (Av Syst) | S13: (UCL Diast) | T13: (Av Diast) | U13: Weight | V13: Av. Weight | W13: Desired Target Weight | X13: Diet | Y13: Medication / Exercise
B14: =$B$5 -> 2014-02-01 | C14: 07:00:00 | D14: 130 | E14: =AVERAGE(D14) -> 130 | F14: =AVERAGE(D14:E14) -> 130 | G14: =AVERAGE(D14:F14) -> 130 | H14: =AVERAGE($D$14:$D$44) -> 120.3225806 | I14: =AVERAGE($G$14:$G$44) -> 120.3225806 | J14: =STDEV($D$14:F14) -> 0 | K14: =AVERAGE($J$14:$J$44) -> 2.668838709 | L14: =I14-($B$9*K14) -> 117.6537419 | M14: =I14+($B$9*K14) -> 122.9914194 | N14: 135 | O14: 85 | P14: 90 | Q14: 139 | R14: =AVERAGE($N$14:$N$44) -> 130.1612903 | S14: 89 | T14: =AVERAGE($O$14:$O$44) -> 80.16129032 | U14: 85 | V14: =AVERAGE($U$14:$U$44) -> 82.09677419 | W14: =$B$10 -> 80 | X14: Good | Y14: Normal medication, 3.5 Km walk, good sleep, no gym
B15: =B14+1 -> 2014-02-02 | C15: 06:00:00 | D15: 120 | E15: =AVERAGE(D15) -> 120 | F15: =AVERAGE(D15:E15) -> 120 | G15: 120 | H15: =AVERAGE($D$14:$D$44) -> 120.3225806 | I15: 120.3225806 | J15: =STDEV($D$14:F15) -> 5.477225575 | K15: 2.668838709 | L15: 117.6537419 | M15: 122.9914194 | N15: 130 | O15: 80 | P15: 85 | Q15: 139 | R15: =AVERAGE($N$14:$N$44) -> 130.1612903 | S15: 89 | T15: =AVERAGE($O$14:$O$44) -> 80.16129032 | U15: 82 | V15: =AVERAGE($U$14:$U$44) -> 82.09677419 | W15: =$B$10 -> 80 | X15: Fair
B16: =B15+1 -> 2014-02-03 | C16: 06:00:00 | D16: 120 | E16: 120 | F16: 120 | G16: 120 | H16: 120.3225806 | I16: 120.3225806 | J16: =STDEV($D$14:F16) -> 5 | K16: 2.668838709 | L16: 117.6537419 | M16: 122.9914194 | N16: 130 | O16: 80 | P16: 85 | Q16: 139 | R16: 130.1612903 | S16: 89 | T16: 80.16129032 | U16: 82 | V16: 82.09677419 | W16: =$B$10 -> 80 | X16: Fair
B17: 2014-02-04 | C17: 06:00:00 | D17: 120 | E17: 120 | F17: 120 | G17: 120 | H17: 120.3225806 | I17: 120.3225806 | J17: =STDEV($D$14:F17) -> 4.522670169 | K17: 2.668838709 | L17: 117.6537419 | M17: 122.9914194 | N17: 130 | O17: 80 | P17: 85 | Q17: 139 | R17: 130.1612903 | S17: 89 | T17: 80.16129032 | U17: 82 | V17: 82.09677419 | W17: 80 | X17: Fair
B18: 2014-02-05 | C18: 06:00:00 | D18: 120 | E18: 120 | F18: 120 | G18: 120 | H18: 120.3225806 | I18: 120.3225806 | J18: =STDEV($D$14:F18) -> 4.140393356 | K18: 2.668838709 | L18: 117.6537419 | M18: 122.9914194 | N18: 130 | O18: 80 | P18: 85 | Q18: 139 | R18: 130.1612903 | S18: 89 | T18: 80.16129032 | U18: 82 | V18: 82.09677419 | W18: 80 | X18: Fair
B19: 2014-02-06 | C19: 06:00:00 | D19: 120 | E19: =AVERAGE(D19) -> 120 | F19: =AVERAGE(D19:E19) -> 120 | G19: 120 | H19: 120.3225806 | I19: 120.3225806 | J19: =STDEV($D$14:F19) -> 3.834824944 | K19: 2.668838709 | L19: 117.6537419 | M19: 122.9914194 | N19: 130 | O19: 80 | P19: 85 | Q19: 139 | R19: 130.1612903 | S19: 89 | T19: 80.16129032 | U19: 82 | V19: 82.09677419 | W19: 80 | X19: Fair
B20: 2014-02-07 | C20: 06:00:00 | D20: 120 | E20: =AVERAGE(D20) -> 120 | F20: =AVERAGE(D20:E20) -> 120 | G20: 120 | H20: 120.3225806 | I20: 120.3225806 | J20: =STDEV($D$14:F20) -> 3.585685828 | K20: 2.668838709 | L20: 117.6537419 | M20: 122.9914194 | N20: 130 | O20: 80 | P20: 85 | Q20: 139 | R20: 130.1612903 | S20: 89 | T20: 80.16129032 | U20: 82 | V20: 82.09677419 | W20: 80 | X20: Fair
B21: 2014-02-08 | C21: 06:00:00 | D21: 120 | E21: 120 | F21: 120 | G21: 120 | H21: 120.3225806 | I21: 120.3225806 | J21: =STDEV($D$14:F21) -> 3.378319623 | K21: 2.668838709 | L21: 117.6537419 | M21: 122.9914194 | N21: 130 | O21: 80 | P21: 85 | Q21: 139 | R21: 130.1612903 | S21: 89 | T21: 80.16129032 | U21: 82 | V21: 82.09677419 | W21: 80 | X21: Fair
B22: 2014-02-09 | C22: 06:00:00 | D22: 120 | E22: 120 | F22: 120 | G22: 120 | H22: 120.3225806 | I22: 120.3225806 | J22: =STDEV($D$14:F22) -> 3.202563076 | K22: 2.668838709 | L22: 117.6537419 | M22: 122.9914194 | N22: 130 | O22: 80 | P22: 85 | Q22: 139 | R22: 130.1612903 | S22: 89 | T22: 80.16129032 | U22: 82 | V22: 82.09677419 | W22: 80 | X22: Fair
B23: 2014-02-10 | C23: 06:00:00 | D23: 120 | E23: 120 | F23: 120 | G23: 120 | H23: 120.3225806 | I23: 120.3225806 | J23: =STDEV($D$14:F23) -> 3.051285766 | K23: 2.668838709 | L23: 117.6537419 | M23: 122.9914194 | N23: 130 | O23: 80 | P23: 85 | Q23: 139 | R23: 130.1612903 | S23: 89 | T23: 80.16129032 | U23: 82 | V23: 82.09677419 | W23: 80 | X23: Fair
B24: 2014-02-11 | C24: 06:00:00 | D24: 120 | E24: 120 | F24: 120 | G24: 120 | H24: 120.3225806 | I24: 120.3225806 | J24: =STDEV($D$14:F24) -> 2.919371041 | K24: 2.668838709 | L24: 117.6537419 | M24: 122.9914194 | N24: 130 | O24: 80 | P24: 85 | Q24: 139 | R24: 130.1612903 | S24: 89 | T24: 80.16129032 | U24: 82 | V24: 82.09677419 | W24: 80 | X24: Fair
B25: 2014-02-12 | C25: 06:00:00 | D25: 120 | E25: 120 | F25: 120 | G25: 120 | H25: 120.3225806 | I25: 120.3225806 | J25: =STDEV($D$14:F25) -> 2.803059553 | K25: 2.668838709 | L25: 117.6537419 | M25: 122.9914194 | N25: 130 | O25: 80 | P25: 85 | Q25: 139 | R25: 130.1612903 | S25: 89 | T25: 80.16129032 | U25: 82 | V25: 82.09677419 | W25: 80 | X25: Fair
B26: 2014-02-13 | C26: 06:00:00 | D26: 120 | E26: 120 | F26: 120 | G26: 120 | H26: 120.3225806 | I26: 120.3225806 | J26: =STDEV($D$14:F26) -> 2.699527624 | K26: 2.668838709 | L26: 117.6537419 | M26: 122.9914194 | N26: 130 | O26: 80 | P26: 85 | Q26: 139 | R26: 130.1612903 | S26: 89 | T26: 80.16129032 | U26: 82 | V26: 82.09677419 | W26: 80 | X26: Fair
B27: 2014-02-14 | C27: 06:00:00 | D27: 120 | E27: 120 | F27: 120 | G27: 120 | H27: 120.3225806 | I27: 120.3225806 | J27: =STDEV($D$14:F27) -> 2.606611802 | K27: 2.668838709 | L27: 117.6537419 | M27: 122.9914194 | N27: 130 | O27: 80 | P27: 85 | Q27: 139 | R27: 130.1612903 | S27: 89 | T27: 80.16129032 | U27: 82 | V27: 82.09677419 | W27: 80 | X27: Fair
B28: 2014-02-15 | C28: 06:00:00 | D28: 120 | E28: 120 | F28: 120 | G28: 120 | H28: 120.3225806 | I28: 120.3225806 | J28: =STDEV($D$14:F28) -> 2.522624896 | K28: 2.668838709 | L28: 117.6537419 | M28: 122.9914194 | N28: 130 | O28: 80 | P28: 85 | Q28: 139 | R28: 130.1612903 | S28: 89 | T28: 80.16129032 | U28: 82 | V28: 82.09677419 | W28: 80 | X28: Fair
B29: 2014-02-16 | C29: 06:00:00 | D29: 120 | E29: 120 | F29: 120 | G29: 120 | H29: 120.3225806 | I29: 120.3225806 | J29: =STDEV($D$14:F29) -> 2.446230274 | K29: 2.668838709 | L29: 117.6537419 | M29: 122.9914194 | N29: 130 | O29: 80 | P29: 85 | Q29: 139 | R29: 130.1612903 | S29: 89 | T29: 80.16129032 | U29: 82 | V29: 82.09677419 | W29: 80 | X29: Fair
B30: 2014-02-17 | C30: 06:00:00 | D30: 120 | E30: 120 | F30: 120 | G30: 120 | H30: 120.3225806 | I30: 120.3225806 | J30: =STDEV($D$14:F30) -> 2.376354103 | K30: 2.668838709 | L30: 117.6537419 | M30: 122.9914194 | N30: 130 | O30: 80 | P30: 85 | Q30: 139 | R30: 130.1612903 | S30: 89 | T30: 80.16129032 | U30: 82 | V30: 82.09677419 | W30: 80 | X30: Fair
B31: 2014-02-18 | C31: 06:00:00 | D31: 120 | E31: 120 | F31: 120 | G31: 120 | H31: 120.3225806 | I31: 120.3225806 | J31: =STDEV($D$14:F31) -> 2.312122823 | K31: 2.668838709 | L31: 117.6537419 | M31: 122.9914194 | N31: 130 | O31: 80 | P31: 85 | Q31: 139 | R31: 130.1612903 | S31: 89 | T31: 80.16129032 | U31: 82 | V31: 82.09677419 | W31: 80 | X31: Fair
B32: 2014-02-19 | C32: 06:00:00 | D32: 120 | E32: 120 | F32: 120 | G32: 120 | H32: 120.3225806 | I32: 120.3225806 | J32: =STDEV($D$14:F32) -> 2.252817784 | K32: 2.668838709 | L32: 117.6537419 | M32: 122.9914194 | N32: 130 | O32: 80 | P32: 85 | Q32: 139 | R32: 130.1612903 | S32: 89 | T32: 80.16129032 | U32: 82 | V32: 82.09677419 | W32: 80 | X32: Fair
B33: 2014-02-20 | C33: 06:00:00 | D33: 120 | E33: 120 | F33: 120 | G33: 120 | H33: 120.3225806 | I33: 120.3225806 | J33: =STDEV($D$14:F33) -> 2.197841777 | K33: 2.668838709 | L33: 117.6537419 | M33: 122.9914194 | N33: 130 | O33: 80 | P33: 85 | Q33: 139 | R33: 130.1612903 | S33: 89 | T33: 80.16129032 | U33: 82 | V33: 82.09677419 | W33: 80 | X33: Fair
B34: 2014-02-21 | C34: 06:00:00 | D34: 120 | E34: 120 | F34: 120 | G34: 120 | H34: 120.3225806 | I34: 120.3225806 | J34: =STDEV($D$14:F34) -> 2.146693954 | K34: 2.668838709 | L34: 117.6537419 | M34: 122.9914194 | N34: 130 | O34: 80 | P34: 85 | Q34: 139 | R34: 130.1612903 | S34: 89 | T34: 80.16129032 | U34: 82 | V34: 82.09677419 | W34: 80 | X34: Fair
B35: 2014-02-22 | C35: 06:00:00 | D35: 120 | E35: 120 | F35: 120 | G35: 120 | H35: 120.3225806 | I35: 120.3225806 | J35: =STDEV($D$14:F35) -> 2.098950787 | K35: 2.668838709 | L35: 117.6537419 | M35: 122.9914194 | N35: 130 | O35: 80 | P35: 85 | Q35: 139 | R35: 130.1612903 | S35: 89 | T35: 80.16129032 | U35: 82 | V35: 82.09677419 | W35: 80 | X35: Fair
B36: 2014-02-23 | C36: 06:00:00 | D36: 120 | E36: 120 | F36: 120 | G36: 120 | H36: 120.3225806 | I36: 120.3225806 | J36: =STDEV($D$14:F36) -> 2.054251408 | K36: 2.668838709 | L36: 117.6537419 | M36: 122.9914194 | N36: 130 | O36: 80 | P36: 85 | Q36: 139 | R36: 130.1612903 | S36: 89 | T36: 80.16129032 | U36: 82 | V36: 82.09677419 | W36: 80 | X36: Fair
B37: 2014-02-24 | C37: 06:00:00 | D37: 120 | E37: 120 | F37: 120 | G37: 120 | H37: 120.3225806 | I37: 120.3225806 | J37: =STDEV($D$14:F37) -> 2.012286206 | K37: 2.668838709 | L37: 117.6537419 | M37: 122.9914194 | N37: 130 | O37: 80 | P37: 85 | Q37: 139 | R37: 130.1612903 | S37: 89 | T37: 80.16129032 | U37: 82 | V37: 82.09677419 | W37: 80 | X37: Fair
B38: 2014-02-25 | C38: 06:00:00 | D38: 120 | E38: 120 | F38: 120 | G38: 120 | H38: 120.3225806 | I38: 120.3225806 | J38: =STDEV($D$14:F38) -> 1.972787848 | K38: 2.668838709 | L38: 117.6537419 | M38: 122.9914194 | N38: 130 | O38: 80 | P38: 85 | Q38: 139 | R38: 130.1612903 | S38: 89 | T38: 80.16129032 | U38: 82 | V38: 82.09677419 | W38: 80 | X38: Fair
B39: 2014-02-26 | C39: 06:00:00 | D39: 120 | E39: 120 | F39: 120 | G39: 120 | H39: 120.3225806 | I39: 120.3225806 | J39: =STDEV($D$14:F39) -> 1.935524153 | K39: 2.668838709 | L39: 117.6537419 | M39: 122.9914194 | N39: 130 | O39: 80 | P39: 85 | Q39: 139 | R39: 130.1612903 | S39: 89 | T39: 80.16129032 | U39: 82 | V39: 82.09677419 | W39: 80 | X39: Fair
B40: 2014-02-27 | C40: 06:00:00 | D40: 120 | E40: 120 | F40: 120 | G40: 120 | H40: 120.3225806 | I40: 120.3225806 | J40: =STDEV($D$14:F40) -> 1.900292375 | K40: 2.668838709 | L40: 117.6537419 | M40: 122.9914194 | N40: 130 | O40: 80 | P40: 85 | Q40: 139 | R40: 130.1612903 | S40: 89 | T40: 80.16129032 | U40: 82 | V40: 82.09677419 | W40: 80 | X40: Fair
B41: 2014-02-28 | C41: 06:00:00 | D41: 120 | E41: 120 | F41: 120 | G41: 120 | H41: 120.3225806 | I41: 120.3225806 | J41: =STDEV($D$14:F41) -> 1.866914581 | K41: 2.668838709 | L41: 117.6537419 | M41: 122.9914194 | N41: 130 | O41: 80 | P41: 85 | Q41: 139 | R41: 130.1612903 | S41: 89 | T41: 80.16129032 | U41: 82 | V41: 82.09677419 | W41: 80 | X41: Fair
B42: 2014-03-01 | C42: 06:00:00 | D42: 120 | E42: 120 | F42: 120 | G42: 120 | H42: 120.3225806 | I42: 120.3225806 | J42: =STDEV($D$14:F42) -> 1.835233882 | K42: 2.668838709 | L42: 117.6537419 | M42: 122.9914194 | N42: 130 | O42: 80 | P42: 85 | Q42: 139 | R42: 130.1612903 | S42: 89 | T42: 80.16129032 | U42: 82 | V42: 82.09677419 | W42: 80 | X42: Fair
B43: =B42+1 -> 2014-03-02 | C43: 06:00:00 | D43: 120 | E43: 120 | F43: 120 | G43: 120 | H43: 120.3225806 | I43: 120.3225806 | J43: =STDEV($D$14:F43) -> 1.805111345 | K43: 2.668838709 | L43: 117.6537419 | M43: 122.9914194 | N43: 130 | O43: 80 | P43: 85 | Q43: 139 | R43: 130.1612903 | S43: 89 | T43: 80.16129032 | U43: 82 | V43: 82.09677419 | W43: 80 | X43: Fair
B44: 2014-03-03 | C44: 06:00:00 | D44: 120 | E44: 120 | F44: 120 | G44: 120 | H44: 120.3225806 | I44: 120.3225806 | J44: =STDEV($D$14:F44) -> 1.776423436 | K44: 2.668838709 | L44: 117.6537419 | M44: 122.9914194 | N44: 130 | O44: 80 | P44: 85 | Q44: 139 | R44: 130.1612903 | S44: 89 | T44: 80.16129032 | U44: 82 | V44: 82.09677419 | W44: 80 | X44: Fair
F45: =AVERAGE($G$14:$G$44) -> 120.3225806 | N45: =AVERAGE(N14:N44) -> 130.1612903 | O45: =AVERAGE(O14:O44) -> 80.16129032 | P45: 85.16129032 | U45: =AVERAGE(U14:U44) -> 82.09677419

Sheet Report
A1: Health Trend Reports | L1: =TODAY() -> 2014-01-28
A6: Blood
A7: Pressure
A24: Weight

Sheet Plan
A1: Analysis and Improvement Plan | D1: =TODAY() -> 2014-01-28 | E1: =Data!Y1 -> Health Tracker Version 5b (2014-02-01)
A3: Health Risk Factor | B3: Severity | C3: Impact | D3: Self-Assessment (or Medical Assessments) | E3: Improvement or Mitigation Plan | F3: Percent of Total | G3: Cumulative % | H3: Line Value
A4: Diet: Sugar product intake | B4: 7 | C4: 18 | D4: Needs greater self control | E4: 1. Have been using sugar sometimes in tea - will completely remove 2. Will reduce any cake, biscuit or dessert to 1 per fortnight | F4: =(C4*100/$C$19) -> 14.51612903 | G4: =F4 -> 14.51612903 | H4: =$B$23 -> 80
A5: Diet: Over-eating | B5: 6 | C5: 17 | D5: General diet is good, but still too much snacking | E5: 1. Contiuous (daily) focus on both diet and food intake 2. Reduce causes for "snacking" - stress and anziety for a start | F5: 13.70967742 | G5: =(G4+F5) -> 28.22580645 | H5: =$B$23 -> 80
A6: Abdominal Fat (Waistline) | B6: 5 | C6: 16 | D6: This defect has developed over many years, and has no overnight solution | E6: 1. Should start to see improvement if I maintain all other actions 2. Gym and crunches will help but is not main solution | F6: 12.90322581 | G6: =(G5+F6) -> 41.12903226 | H6: 80
A7: Over-weight | B7: 5 | C7: 15 | D7: About 5kg above optimum; BMI = 26 | E7: 1. Concentrate more on daily diet and food intake 2. Restart gym visits (when it re-opens) | F7: 12.09677419 | G7: 53.22580645 | H7: 80
A8: Diet: High fat intake | B8: 5 | C8: 9 | D8: Too much meat and butter in diet | E8: 1. Reduce or limit meat in diet 2. Use low-fat spreads to replace butter | F8: 7.258064516 | G8: 60.48387097 | H8: 80
A9: Diet: Poor nutrition | B9: 5 | C9: 8 | D9: Need to improve ratio of salads, fresh vegies and fruit to meats and carbs | E9: 1. Better diet management 2. ork harde on maintaing a daily regimen | F9: 6.451612903 | G9: 66.93548387 | H9: 80
A10: High Blood Pressure | B10: 5 | C10: 7 | D10: 12/01/14 This seems to be getting well under control, due to better sleep, intense walking etc | E10: 1. Increase the consistency and distance of daily walks. 2. Improve sleeping times and length. 3. Keep working on reducing stress levels | F10: 5.64516129 | G10: 72.58064516 | H10: 80
A11: Excessive Stress / Anxiety | B11: 6 | C11: 6 | D11: A number of factors | E11: 1. Daily walks, and weekly gym work-outs 2. Move to Better and consistent sleep patterns | F11: 4.838709677 | G11: 77.41935484 | H11: 80
A12: Lack of general fitness | B12: 6 | C12: 6 | D12: Due to work anxieties and lack of consistent, restful sleeo | E12: 1. Aim to get more consistent sleep 2. Gym work helps, but longer walks (at reasonable pace) are better | F12: 4.838709677 | G12: 82.25806452 | H12: 80
A13: Poor Cholesterol Levels | B13: 5 | C13: 5 | D13: 3 montly pathology results - improving | F13: 4.032258065 | G13: 86.29032258 | H13: 80
A14: Lack of Sleep / Poor Sleep | B14: 4 | C14: 5 | D14: Need to have improved sleep time patterns | E14: 1. Reduce late nights. 2. Minimise low sugar levels overnght (vary Glimel) | F14: 4.032258065 | G14: 90.32258065 | H14: 80
A15: Medication Balance | B15: 4 | C15: 4 | F15: 3.225806452 | G15: 93.5483871 | H15: 80
A16: No Gym or Sport activity | B16: 7 | C16: 3 | F16: 2.419354839 | G16: 95.96774194 | H16: 80
A17: Lack of Physical Activity | B17: 3 | C17: 3 | F17: 2.419354839 | G17: 98.38709677 | H17: 80
A18: Sedentary Work Practice | B18: 3 | C18: 2 | F18: 1.612903226 | G18: 100 | H18: 80
A19: Totals | B19: =SUM(B4:B18) -> 76 | C19: =SUM(C4:C18) -> 124 | F19: =SUM(F4:F18) -> 100 | G19: =G18 -> 100
A21: ( <-- Sort on C then B for these cells A3 through to E18 --> ) | D21: Severity / Impact Level Guidance
D22: 0. No issues or Impact; Monitor only | E22: 10. A number of issues; minimal control; noticeable impact
A23: Set Line Value: | B23: 80 | D23: 1. Negligible issues; No Impact; Monitor & control | E23: 12. Frequent issues; minimal control; undesirable impact
D24: 2. Negligible issues or Impact; Monitor and control | E24: 14. Frequent issues; poor control; medium impact
D25: 4. Minimal issues; Minimal impact; Well controlled | E25: 16. Frequent issues; poor control; high impact
D26: 6. Occasional issues; Some Impact; Some control | E26: 18. Many issues; very poor control; very high impact
D27: 8. Number of issues; Noticeable impact; Basic control | E27: 20, Critical issue and impact / completely out of control
A34: Daily Notes and Analysis on Data Results | B34: Date | D34: Daily Observations and Suggestions
B35: =Data!$B$5 -> 2014-02-01
B36: =B35+1 -> 2014-02-02
B37: 2014-02-03
B38: 2014-02-04
B39: 2014-02-05
B40: 2014-02-06
B41: 2014-02-07
B42: 2014-02-08
B43: 2014-02-09
B44: 2014-02-10
B45: 2014-02-11
B46: 2014-02-12
B47: 2014-02-13
B48: 2014-02-14
B49: 2014-02-15
B50: 2014-02-16
B51: 2014-02-17
B52: 2014-02-18
B53: 2014-02-19
B54: 2014-02-20
B55: 2014-02-21
B56: 2014-02-22
B57: 2014-02-23
B58: 2014-02-24
B59: 2014-02-25
B60: 2014-02-26
B61: 2014-02-27
B62: 2014-02-28
B63: 2014-03-01
B64: 2014-03-02
B65: 2014-03-03

Sheet Reference (hidden)
A1: Diet | B1: Comments
A2: Excellent | B2: Conforming all day (No sugar, cheese, bread, fat, excesses)
A3: Good | B3: Minor deviation; Conforming afternoon / evening
A4: Fair | B4: Reasonable day diet; conforming in evening
A5: Poor | B5: Some deviations; especially evening
A6: Bad | B6: Totally lost the plot
A8: =TODAY() -> 2014-01-28 | B8: Chart Titles
A9: Chart1 | B9: ="Blood Pressure Chart "&TEXT($A$8,"yyyy-mm-dd")&" ("&Data!$B$4&")" -> Blood Pressure Chart 2014-01-28 (JohnW)
A10: Chart2 | B10: ="Weight Control Chart "&TEXT($A$8,"yyyy-mm-dd")&" ("&Data!$B$4&")" -> Weight Control Chart 2014-01-28 (JohnW)
A11: Chart3 | B11: ="Daily Glucose Levels (mg/dL) - Average "&TEXT($A$8,"yyyy-mm-dd")&" ("&Data!$B$4&")" -> Daily Glucose Levels (mg/dL) - Average 2014-01-28 (JohnW)
A12: Chart4 | B12: ="Daily Glucose Levels (mg/dL) - Fasting "&TEXT($A$8,"yyyy-mm-dd")&" ("&Data!$B$4&")" -> Daily Glucose Levels (mg/dL) - Fasting 2014-01-28 (JohnW)
A13: Chart5 | B13: ="Pareto Analysis "&TEXT($A$8,"yyyy-mm-dddd")&" ("&Data!$B$4&")" -> Pareto Analysis 2014-01-Tuesday (JohnW)
A15: Level | B15: Severity / Impact
A16: 0 | B16: No issues or Impact, but need to monitor and control
A17: 1
A18: 2 | B18: Negligible issues; no Impact; completely under control
A19: 3
A20: 4 | B20: Minimal issues; well controlled; minimal impact
A21: 5
A22: 6 | B22: Occasional issues; some control; some impact
A23: 7
A24: 8 | B24: A number of issues; basic control; noticeable impact
A25: 9
A26: 10 | B26: A number of issues; minimal control; noticeable impact
A27: 11
A28: 12 | B28: Frequent issues; minimal control; undesirable impact
A29: 13
A30: 14 | B30: Frequent issues; poor control; medium impact
A31: 15
A32: 16 | B32: Frequent issues; poor control; high impact
A33: 17
A34: 18 | B34: Many issues; very poor control; very high impact
A35: 19
A36: 20 | B36: Critical issue and impact / completely out of control
